bitfinex/quotes_ETHUSD_20240717
["timestamp","ask_amount","ask_price","bid_price","bid_amount"]
[1721184458857,2.86164,3494.5,3494.1,0.43457238]
[1721184459188,1.31393423,3493.9,3493.8,2.8622]
[1721184459558,1.31393423,3493.9,3493.7,1.7]
[1721184459881,1.31393423,3493.9,3493.7,4.56228]
[1721184462373,1.31393423,3493.9,3493.7,1.7]
[1721184462575,1.31393423,3493.9,3493.7,2.442481]
[1721184463597,1.31393423,3493.9,3493.2,14.31397]
[1721184463817,1.31393423,3493.9,3493.2,11.4513]
[1721184463964,1.31393423,3493.9,3492.9,7.28]
[1721184463965,2.4698,3493.8,3492.9,7.28]
[1721184464163,2.86277,3493.2,3492.9,7.28]
[1721184464597,2.86278,3493.1,3492.9,7.28]
[1721184464812,2.86278,3493.1,3492.4,2.86333]
[1721184465164,2.86278,3493.1,3492.3,21.36]
[1721184465364,2.86278,3493.1,3492.3,24.22338]
[1721184466868,2.86278,3493.1,3492.4,0.12761065]
[1721184468300,2.86278,3493.1,3492.5,0.12333598]
[1721184468599,2.86278,3493.1,3492.3,23.03705642]
[1721184468805,2.86278,3493.1,3492.4,0.12335697]
[1721184472973,5.33206,3493.8,3492.4,2.98670697]
[1721184472974,2.86271,3493.2,3492.4,2.98670697]
[1721184473174,2.86282,3493.1,3492.4,2.98670697]
[1721184473887,2.86295,3492.9,3492.4,0.12335697]
[1721184474099,2.86307,3492.8,3492.4,0.12335697]
[1721184474472,2.86313,3492.7,3492.4,0.12335697]
[1721184475621,0.816612,3492.8,3492.4,0.12335697]
[1721184475622,2.86319,3492.6,3492.4,0.12335697]
[1721184478422,2.86319,3492.6,3492.5,0.12370198]
[1721184478826,2.4401,3493.0,3492.1,1.7]
[1721184479030,2.86278,3493.1,3492.5,0.12370198]
[1721184479207,2.86278,3493.1,3492.2,5.73969]
[1721184479408,2.86296,3492.9,3492.3,0.12374823]
[1721184480309,2.86303,3492.8,3492.3,0.12374823]
[1721184480719,2.3919,3492.7,3492.1,0.29912443]
[1721184480919,2.86319,3492.6,3492.4,0.12372725]
[1721184481117,2.86319,3492.6,3492.1,0.29912443]
[1721184481321,2.86319,3492.6,3492.5,0.12370627]
[1721184481629,2.86339,3492.4,3492.1,0.29912443]
[1721184481812,5.72645,3492.6,3492.0,0.44865511]
[1721184482219,2.86319,3492.6,3492.0,0.44865511]
[1721184482421,2.3919,3492.7,3492.0,0.44865511]
[1721184482422,2.86328,3492.5,3492.0,0.44865511]
[1721184482926,2.86338,3492.4,3492.0,0.44865511]
[1721184483726,5.19058,3492.4,3492.1,0.1237902]
[1721184483931,5.995966,3492.4,3492.1,0.1237902]
[1721184485559,2.86346,3492.3,3492.1,0.1237902]
[1721184488443,2.86328,3492.5,3492.1,0.1237902]
[1721184489646,2.86314,3492.7,3492.1,0.1237902]
[1721184490555,2.4132,3492.8,3492.1,0.1237902]
[1721184490859,2.86336,3492.4,3492.1,0.1237902]
[1721184492646,2.86345,3492.3,3492.1,0.1237902]
[1721184494947,2.86352,3492.2,3492.1,0.1237902]
[1721184495458,5.13902,3492.2,3492.1,0.1237902]
[1721184497163,2.86342,3492.4,3492.1,0.1237902]
[1721184497455,2.86345,3492.3,3492.1,0.1237902]
[1721184497859,0.31044,3492.6,3492.1,0.1237902]
[1721184498060,2.86337,3492.4,3492.1,0.1237902]
[1721184498272,0.31044,3492.6,3492.1,0.1237902]
[1721184498442,3.442421,3492.5,3492.1,0.1237902]
[1721184499770,2.86343,3492.4,3492.1,0.1237902]
[1721184500284,2.86352,3492.2,3492.1,0.1237902]
[1721184500983,3.442411,3492.5,3492.1,0.1237902]
[1721184501353,0.6370271,3492.4,3492.1,0.1237902]
[1721184501959,2.86352,3492.2,3492.1,0.1237902]
[1721184503194,5.72704,3492.2,3492.1,0.1237902]
[1721184503559,8.10124,3492.2,3492.1,0.1237902]
[1721184503777,11.10124,3492.2,3492.1,0.1237902]
[1721184503982,12.36503794,3492.2,3492.1,0.1237902]
[1721184504210,12.36503794,3492.2,3491.4,7.28]
[1721184504211,2.86392,3491.8,3491.4,7.28]
[1721184504404,2.86392,3491.8,3491.5,0.12404056]
[1721184504687,2.86392,3491.8,3491.3,0.2994355]
[1721184504885,2.86392,3491.8,3491.6,0.12401957]
[1721184505090,3.436685,3491.8,3491.3,0.2994355]
[1721184505297,3.436685,3491.8,3491.7,0.12399858]
[1721184505500,3.436685,3491.8,3491.3,0.2994355]
[1721184505698,3.436685,3491.8,3491.7,0.12399858]
[1721184505899,3.436685,3491.8,3491.3,0.2994355]
[1721184506361,2.86392,3491.8,3491.4,0.12406155]
[1721184511278,2.864,3491.7,3491.0,2.44833723]
[1721184511476,2.86402,3491.6,3491.0,2.44833723]
[1721184511989,2.86392,3491.8,3491.0,5.31278723]
[1721184512187,9.13747235,3492.2,3491.2,2.86432]
[1721184512492,0.89971235,3492.5,3491.8,2.86384]
[1721184512695,9.22735235,3492.6,3491.8,2.86384]
[1721184513716,2.86345,3492.3,3491.9,0.124031]
[1721184513918,0.286345,3492.2,3491.9,0.124031]
[1721184514421,0.286345,3492.2,3492.0,0.12401001]
[1721184514779,0.286345,3492.2,3491.5,10.14409]
[1721184514973,3.149885,3492.2,3492.1,0.12406199]
[1721184515175,2.86371,3492.0,3491.5,7.28]
[1721184515492,2.2662,3491.9,3491.5,7.28]
[1721184515680,2.86401,3491.6,3491.5,7.28]
[1721184516022,2.86401,3491.6,3491.0,2.44833723]
[1721184516325,2.86386,3491.8,3491.0,5.31281723]
[1721184516614,2.2662,3491.9,3491.0,5.31281723]
[1721184516615,2.86394,3491.7,3491.0,5.31281723]
[1721184517788,0.286345,3492.2,3491.0,5.31281723]
[1721184517789,2.86373,3492.0,3491.3,2.86424]
[1721184520521,2.86356,3492.2,3491.4,6.81906]
[1721184520684,3.76327235,3492.2,3491.4,6.81906]
[1721184521719,0.89971235,3492.2,3491.4,6.81906]
[1721184521897,2.86344,3492.3,3491.6,2.86396]
[1721184522235,4.99368658,3492.3,3491.6,2.86396]
[1721184523086,2.86385,3491.8,3491.3,7.28]
[1721184524692,5.23265,3491.8,3491.3,7.28]
[1721184525419,6.13236235,3491.8,3491.1,2.86436]
[1721184525624,6.13236235,3491.8,3491.0,0.44896266]
[1721184525625,2.86393,3491.7,3491.0,0.44896266]
[1721184525925,2.86393,3491.7,3491.0,3.31341266]
[1721184526432,4.78223682,3491.7,3491.0,0.44896266]
[1721184526794,3.88252447,3491.7,3491.0,0.44896266]
[1721184527220,2.8641,3491.5,3491.0,0.44896266]
[1721184527405,2.8641,3491.5,3490.8,2.86464]
[1721184528415,3.32109825,3491.5,3490.8,2.86464]
[1721184528614,3.32109825,3491.5,3490.9,0.12437975]
[1721184530439,2.8641,3491.5,3490.9,0.12437975]
[1721184530623,4.78223682,3491.7,3490.9,0.12437975]
[1721184530624,3.76364235,3491.7,3490.9,0.12437975]
[1721184530793,2.86393,3491.7,3490.9,2.98896975]
[1721184531433,2.86426,3491.4,3490.9,0.12437975]
[1721184531794,2.86426,3491.4,3490.6,12.50933]
[1721184532188,2.86428,3491.3,3490.7,0.12442175]
[1721184532420,2.86426,3491.4,3490.7,0.12442175]
[1721184532421,2.86444,3491.1,3490.7,0.12442175]
[1721184535271,5.12912,3491.5,3490.7,0.12442175]
[1721184535421,0.20895147,3491.4,3490.7,2.98916175]
[1721184535617,3.07314147,3491.4,3490.7,0.12442175]
[1721184537657,2.8644,3491.2,3490.7,0.12442175]
[1721184537851,3.48820638,3491.2,3490.7,0.12442175]
[1721184538160,2.8644,3491.2,3490.7,0.12442175]
[1721184538370,0.20895147,3491.4,3490.7,0.12442175]
[1721184538371,2.86422,3491.4,3490.7,0.12442175]
[1721184539469,2.86422,3491.4,3490.7,2.98915175]
[1721184539820,3.37971235,3491.8,3490.8,2.86466]
[1721184539821,2.86406,3491.6,3490.8,2.86466]
[1721184540056,0.91075624,3491.6,3490.9,0.12450138]
[1721184540556,3.77482624,3491.6,3490.9,0.12450138]
[1721184541121,3.77482624,3491.6,3490.8,2.86466]
[1721184541322,3.77482624,3491.6,3490.9,5.19277]
[1721184541562,0.89971235,3492.0,3491.4,2.86414]
[1721184541776,2.86354,3492.2,3491.4,2.86414]
[1721184542082,2.86354,3492.2,3491.5,5.4124654]
[1721184542725,6.04814235,3492.7,3491.9,1.7]
[1721184542928,2.86327,3492.5,3491.9,1.7]
[1721184543123,2.86327,3492.5,3492.0,0.12420032]
[1721184544345,2.8632,3492.6,3492.0,0.12420032]
[1721184544876,3.44536641,3492.7,3492.1,2.86357]
[1721184545215,3.76271235,3492.9,3492.2,0.12412258]
[1721184545478,2.863,3492.9,3492.2,0.12412258]
[1721184545626,3.76271235,3492.9,3492.2,0.12412258]
[1721184546637,2.863,3492.9,3492.2,0.12412258]
[1721184546840,1.02875147,3492.8,3492.2,0.12412258]
[1721184547360,3.89178147,3492.8,3492.2,0.12412258]
[1721184548077,3.89178147,3492.8,3492.0,2.86367]
[1721184548241,2.86327,3492.5,3492.3,0.12405152]
[1721184548429,2.86327,3492.5,3491.6,2.86399]
[1721184548430,5.23877,3492.5,3491.6,2.86399]
[1721184548633,5.23877,3492.5,3491.2,5.24151]
[1721184548634,2.86346,3492.3,3491.2,5.24151]
[1721184548969,2.86379,3491.9,3491.1,4.56437]
[1721184549153,2.86386,3491.8,3491.3,0.12409401]
[1721184549325,2.86393,3491.7,3491.2,0.124115]
[1721184549528,2.86393,3491.7,3490.9,2.86458]
[1721184549529,2.86393,3491.7,3491.4,0.12407301]
[1721184549845,2.86409,3491.5,3491.3,0.12409401]
[1721184550167,2.86409,3491.5,3490.8,5.24186]
[1721184550378,2.86409,3491.5,3490.8,2.86466]
[1721184550932,2.86409,3491.5,3490.7,1.7]
[1721184551135,2.86409,3491.5,3490.7,4.56474]
[1721184551490,2.86441,3491.2,3490.6,0.29896481]
[1721184551685,2.86444,3491.1,3490.6,0.29896481]
[1721184551975,2.86444,3491.1,3490.3,4.56506]
[1721184551976,2.86444,3491.1,3490.3,2.86506]
[1721184552906,2.86432,3491.3,3490.4,2.86499]
[1721184553589,2.86411,3491.5,3490.6,2.86482]
[1721184553794,2.86411,3491.5,3490.6,3.6376862]
[1721184554093,2.86419,3491.4,3490.7,2.335]
[1721184554865,2.86419,3491.4,3490.6,2.86482]
[1721184558521,2.86419,3491.4,3490.7,0.12436739]
[1721184558827,4.6217591,3491.7,3490.7,0.12436739]
[1721184558828,2.86449,3491.1,3490.7,0.12436739]
[1721184559136,2.86466,3490.9,3490.3,0.29885198]
[1721184559287,2.36466,3490.9,3490.2,7.28]
[1721184559483,2.36466,3490.9,3490.8,0.12449949]
[1721184559833,2.36466,3490.9,3490.2,7.28]
[1721184559999,2.86467,3490.8,3490.2,7.28]
[1721184560201,2.86467,3490.8,3490.3,0.12460451]
[1721184561114,2.86478,3490.7,3490.3,0.12460451]
[1721184563498,2.86485,3490.6,3490.3,0.12460451]
[1721184564642,2.86493,3490.5,3490.1,0.44904541]
[1721184564817,2.86493,3490.5,3490.4,0.1245835]
[1721184565004,2.86493,3490.5,3489.8,7.28]
[1721184565203,2.86493,3490.5,3490.4,0.1245835]
[1721184565721,2.86493,3490.5,3489.8,10.14547]
[1721184566028,2.86493,3490.5,3490.4,0.1245835]
[1721184566234,2.86493,3490.5,3489.8,10.14547]
[1721184566395,2.86493,3490.5,3490.4,0.1245835]
[1721184566592,2.86503,3490.4,3489.8,7.28]
[1721184567433,2.86517,3490.2,3489.8,7.28]
[1721184568756,2.86533,3490.0,3489.4,3.31496415]
[1721184570141,2.86524,3490.1,3489.4,3.31496415]
[1721184570349,2.86524,3490.1,3489.5,0.29866835]
[1721184572157,2.8655,3489.8,3489.5,0.29866835]
[1721184572338,2.8655,3489.8,3489.4,0.44914415]
[1721184572848,2.8655,3489.8,3489.3,7.28]
[1721184573049,2.8655,3489.8,3489.1,2.86605]
[1721184573641,2.8655,3489.8,3489.2,0.12079789]
[1721184574327,6.31371235,3490.7,3489.2,0.12079789]
[1721184574644,2.86519,3490.2,3489.4,2.86579]
[1721184575021,2.86519,3490.2,3489.5,0.12073484]
[1721184576262,2.86525,3490.1,3489.5,0.12073484]
[1721184576750,5.15661,3490.3,3489.5,2.50513484]
[1721184577752,5.15661,3490.3,3489.5,5.37086484]
[1721184578835,2.86517,3490.2,3489.5,5.37086484]
[1721184580167,2.2915,3490.3,3489.6,2.86564]
[1721184580385,8.15658,3490.3,3489.6,2.86564]
[1721184580539,8.15658,3490.3,3489.7,0.12085317]
[1721184582626,8.15658,3490.3,3489.5,2.86568]
[1721184582627,2.86518,3490.2,3489.5,2.86568]
[1721184582832,1.10217,3490.2,3489.8,0.12083216]
[1721184583174,2.86541,3489.9,3489.3,0.29825275]
[1721184585242,2.86519,3490.2,3489.3,3.16415275]
[1721184585243,2.86529,3490.1,3489.3,3.16415275]
[1721184585981,2.86524,3490.1,3489.4,2.86577]
[1721184586165,2.86524,3490.1,3489.5,0.60299828]
[1721184588147,2.86535,3490.0,3489.3,0.29825275]
[1721184588640,2.8652,3490.2,3489.4,0.12091763]
[1721184589051,2.8654,3490.0,3489.4,0.12091763]
[1721184589373,2.86542,3489.9,3489.4,0.12091763]
[1721184591479,2.86486,3490.6,3489.6,2.86559]
[1721184591784,2.86525,3490.1,3489.7,0.12085458]
[1721184591981,2.86529,3490.1,3489.7,0.12085458]
[1721184592143,2.86529,3490.1,3489.2,2.86598]
[1721184592144,2.86547,3489.9,3489.2,2.86598]
[1721184592335,2.86547,3489.9,3489.8,0.12082354]
[1721184592541,2.86547,3489.9,3489.2,2.86598]
[1721184592768,2.86547,3489.9,3489.8,0.12082354]
[1721184592940,2.86547,3489.9,3489.2,2.86598]
[1721184593140,2.86547,3489.9,3489.8,0.12082354]
[1721184593474,2.86547,3489.9,3489.2,2.86598]
[1721184593854,2.86547,3489.9,3489.3,0.12092862]
[1721184598802,2.86547,3489.9,3489.3,2.98681862]
[1721184600006,2.86547,3489.9,3489.3,0.12092862]
[1721184601366,2.86516,3490.2,3489.4,2.86576]
[1721184601785,2.86516,3490.2,3489.5,0.12093244]
[1721184602570,2.86508,3490.3,3489.5,4.68666244]
[1721184602901,5.86517,3490.2,3489.5,4.68666244]
[1721184603200,5.86517,3490.2,3489.6,2.4192]
[1721184603400,5.86517,3490.2,3489.6,2.54011285]
[1721184605092,0.89971235,3490.3,3489.6,5.40576285]
[1721184605439,3.76447235,3490.7,3490.0,2.86531]
[1721184605600,2.86484,3490.6,3489.9,1.7]
[1721184605901,2.86484,3490.6,3490.1,0.12080779]
[1721184605902,3.76455235,3490.6,3490.1,0.12080779]
[1721184606107,5.294,3490.4,3490.0,0.1208288]
[1721184606307,5.294,3490.4,3490.2,0.12078678]
[1721184606308,2.86509,3490.3,3490.2,0.12078678]
[1721184606513,2.86509,3490.3,3490.1,0.12080779]
[1721184606802,2.86509,3490.3,3490.2,0.12078678]
[1721184607300,2.86509,3490.3,3489.7,2.86556]
[1721184607503,2.86509,3490.3,3490.2,0.12078678]
[1721184607803,2.429,3490.4,3490.2,0.11671391]
[1721184607995,5.29401,3490.4,3490.2,0.11671391]
[1721184608177,5.29401,3490.4,3489.7,2.86556]
[1721184608366,5.29401,3490.4,3490.3,0.11674081]
[1721184608567,6.41204506,3490.4,3489.7,2.86556]
[1721184608911,5.29401,3490.4,3489.7,2.86556]
[1721184609215,5.29401,3490.4,3489.8,0.11684586]
[1721184610396,6.19372235,3490.4,3489.8,0.11684586]
[1721184611722,5.29401,3490.4,3489.8,0.11684586]
[1721184612432,6.19372235,3490.4,3489.8,0.11684586]
[1721184612740,0.89971235,3490.4,3489.9,3.87135]
[1721184613034,0.89971235,3490.5,3490.0,0.11680383]
[1721184613237,0.89971235,3490.5,3490.0,2.98212383]
[1721184613389,0.89971235,3490.6,3490.1,1.006]
[1721184613727,1.18980231,3490.8,3490.1,1.006]
[1721184613728,0.89971235,3490.7,3490.1,1.39824788]
[1721184613931,0.89971235,3490.7,3490.2,0.11676181]
[1721184614088,0.89971235,3490.6,3490.2,0.11676181]
[1721184614503,3.76450235,3490.7,3490.0,2.86532]
[1721184614727,0.89971235,3490.6,3490.1,0.11678282]
[1721184615449,0.89971235,3490.7,3490.2,5.13545]
[1721184615598,0.89971235,3490.7,3490.2,6.14145]
[1721184615794,0.89971235,3490.7,3490.3,0.11674081]
[1721184616095,2.3067,3490.6,3490.3,0.11674081]
[1721184616496,2.86509,3490.3,3489.7,2.86551]
[1721184618597,2.86509,3490.3,3489.8,0.11685722]
[1721184618800,2.86517,3490.2,3489.8,0.11685722]
[1721184619125,2.86517,3490.2,3489.5,4.86420611]
[1721184619318,2.86517,3490.2,3489.9,0.11683621]
[1721184619636,2.86517,3490.2,3490.0,0.1168152]
[1721184619995,2.86517,3490.2,3489.5,4.86420611]
[1721184620247,2.86517,3490.2,3490.1,0.11679419]
[1721184620548,2.86517,3490.2,3489.5,4.86420611]
[1721184621035,2.86517,3490.2,3489.6,0.11689925]
[1721184621455,2.86534,3490.0,3489.6,0.11689925]
[1721184621747,3.76505235,3490.0,3489.6,0.11689925]
[1721184622042,3.76505235,3490.0,3489.3,7.28]
[1721184622043,3.76505235,3490.0,3489.4,2.86581]
[1721184622208,3.76505235,3490.0,3489.7,0.11687824]
[1721184622544,3.76505235,3490.0,3489.4,2.86581]
[1721184622545,3.76505235,3490.0,3489.3,7.28]
[1721184622702,3.76505235,3490.0,3489.3,10.14589]
[1721184623195,3.76505235,3490.0,3489.4,0.11694129]
[1721184623516,2.86534,3490.0,3489.4,0.11694129]
[1721184623922,2.86551,3489.8,3489.4,0.11694129]
[1721184624115,5.73148,3489.5,3489.4,0.11694129]
[1721184624333,5.73148,3489.5,3488.8,7.28]
[1721184624334,3.36621235,3489.5,3488.8,7.28]
[1721184624569,2.86607,3489.1,3488.9,0.11704639]
[1721184625062,2.86607,3489.1,3488.7,0.44919699]
[1721184625215,2.86607,3489.1,3489.0,0.11702537]
[1721184625420,2.86607,3489.1,3488.7,0.44919699]
[1721184625715,2.86607,3489.1,3489.0,0.11702537]
[1721184626141,2.86607,3489.1,3488.7,0.44919699]
[1721184626338,0.89971235,3489.4,3488.8,0.11706741]
[1721184626339,2.86623,3488.9,3488.8,0.11706741]
[1721184626749,2.86635,3488.8,3488.3,7.28]
[1721184627056,2.86635,3488.8,3488.4,0.10967464]
[1721184627420,2.86635,3488.8,3488.1,5.43347717]
[1721184628059,2.86635,3488.8,3488.2,2.97658489]
[1721184628255,2.86635,3488.8,3488.3,0.84101621]
[1721184628559,2.86597,3489.3,3488.5,1.7]
[1721184628874,2.86597,3489.3,3488.6,2.4723]
[1721184629039,2.86597,3489.3,3488.6,2.58201077]
[1721184630051,5.33229,3489.5,3488.7,2.86637]
[1721184630266,2.86579,3489.5,3488.9,1.7]
[1721184630618,2.86579,3489.5,3489.0,0.10962667]
[1721184631627,2.86579,3489.5,3489.0,0.13909036]
[1721184632757,2.86557,3489.7,3489.0,0.13909036]
[1721184632963,3.0,3489.6,3489.0,0.13909036]
[1721184633184,5.86567,3489.6,3489.0,0.13909036]
[1721184634684,2.86574,3489.5,3489.0,0.13909036]
[1721184635849,5.86569,3489.6,3489.0,0.13909036]
[1721184636484,2.86574,3489.5,3489.0,0.13909036]
[1721184637411,3.82884224,3489.5,3489.0,0.13909036]
[1721184638275,2.86582,3489.4,3489.0,0.13909036]
[1721184638655,2.3398,3489.2,3489.0,0.13909036]
[1721184639095,2.3398,3489.2,3488.5,2.86654]
[1721184639255,5.2058,3489.2,3489.1,0.139106]
[1721184639591,6.19924346,3489.2,3488.5,2.86654]
[1721184639751,6.19924346,3489.2,3489.1,0.1391131]
[1721184639956,6.19924346,3489.2,3488.5,2.86654]
[1721184639957,6.19924346,3489.2,3488.2,12.43937]
[1721184640278,2.86624,3488.9,3488.3,0.13928808]
[1721184641198,2.86613,3489.1,3488.3,3.00599808]
[1721184641359,2.86616,3489.0,3488.3,3.00599808]
[1721184645277,2.866,3489.2,3488.4,2.86659]
[1721184645594,2.866,3489.2,3488.5,0.1392557]
[1721184647179,2.86617,3489.0,3488.5,0.1392557]
[1721184650458,2.86617,3489.0,3488.5,1.1462557]
[1721184650662,2.86617,3489.0,3488.5,2.09325197]
[1721184651101,5.73205,3489.2,3488.5,2.09325197]
[1721184651514,2.3287,3489.5,3488.5,2.09325197]
[1721184651679,5.86571,3489.6,3488.8,2.2859]
[1721184652071,5.86571,3489.6,3488.9,0.13920945]
[1721184652403,2.86574,3489.5,3489.0,0.13918758]
[1721184652713,5.86571,3489.6,3489.0,0.13918758]
[1721184652714,2.86583,3489.4,3489.0,0.13918758]
[1721184652875,2.86583,3489.4,3488.7,3.87339]
[1721184653080,2.86583,3489.4,3489.1,0.13916571]
[1721184653409,2.86583,3489.4,3489.2,0.13914385]
[1721184653899,2.86583,3489.4,3488.7,3.87339]
[1721184654098,2.86583,3489.4,3489.3,0.13912198]
[1721184654320,2.86583,3489.4,3488.7,3.87339]
[1721184654604,2.86583,3489.4,3488.8,0.13923132]
[1721184657092,0.8986087,3490.2,3489.2,1.007]
[1721184657293,0.8986087,3490.2,3489.1,2.4561]
[1721184657294,2.86516,3490.2,3489.4,3.8728]
[1721184657883,2.3673,3490.4,3489.5,3.00478409]
[1721184658086,3.2659087,3490.8,3490.0,1.007]
[1721184658289,2.3673,3490.8,3490.0,1.007]
[1721184658525,2.3673,3490.8,3490.1,0.13886039]
[1721184659038,2.8648,3490.7,3490.2,0.13883854]
[1721184659191,2.8648,3490.7,3489.9,2.86539]
[1721184659392,2.8648,3490.7,3490.3,0.13881669]
[1721184659690,3.775235,3490.6,3489.9,2.86539]
[1721184660316,3.775235,3490.6,3490.0,0.13888225]
[1721184660650,2.86485,3490.6,3490.0,0.13888225]
[1721184661313,2.86493,3490.5,3490.0,0.13888225]
[1721184662126,2.86493,3490.5,3489.7,5.32161]
[1721184662331,2.86493,3490.5,3490.1,0.13862016]
[1721184662637,2.86493,3490.5,3490.2,0.13858694]
[1721184662826,0.072978,3490.4,3490.2,0.13858694]
[1721184663013,2.86493,3490.5,3489.7,5.32161]
[1721184663218,2.86493,3490.5,3490.3,0.13856508]
[1721184663418,2.86493,3490.5,3489.7,5.32161]
[1721184663636,2.86493,3490.5,3490.4,0.13854323]
[1721184663845,2.86493,3490.5,3489.7,5.32161]
[1721184664010,2.86503,3490.4,3489.5,10.14573]
[1721184664206,5.16577,3490.2,3489.8,0.13867436]
[1721184664443,5.16577,3490.2,3489.5,7.28]
[1721184664653,2.3006,3490.2,3489.9,0.1386525]
[1721184664827,2.86503,3490.4,3489.6,2.86565]
[1721184665014,2.86503,3490.4,3490.0,0.13863064]
[1721184665253,2.86503,3490.4,3489.7,2.2961]
[1721184665411,2.86486,3490.6,3490.1,0.138623]
[1721184665620,2.86486,3490.6,3489.7,2.2961]
[1721184665824,2.86486,3490.6,3490.2,0.13860114]
[1721184666050,2.86468,3490.8,3489.9,2.86536]
[1721184666323,2.86468,3490.8,3490.3,0.13857929]
[1721184666570,2.86468,3490.8,3490.0,0.8084246]
[1721184666724,2.86468,3490.8,3490.4,0.13855744]
[1721184667063,2.86468,3490.8,3490.5,0.13853559]
[1721184667260,2.86476,3490.7,3490.0,3.6737346]
[1721184667470,2.86476,3490.7,3490.6,0.13851374]
[1721184667625,2.86476,3490.7,3489.9,2.86538]
[1721184667973,3.7631387,3491.0,3490.0,3.837975]
[1721184667974,2.86467,3490.8,3490.0,3.837975]
[1721184668325,2.86467,3490.8,3490.1,0.138623]
[1721184669819,2.86479,3490.7,3490.1,0.138623]
[1721184670062,3.437736,3490.7,3489.8,4.56547]
[1721184670257,5.706436,3490.7,3490.2,0.13860114]
[1721184670562,5.706436,3490.7,3489.9,2.8654]
[1721184670791,5.13349,3490.7,3489.9,2.8654]
[1721184670999,5.13349,3490.7,3490.0,0.13864485]
[1721184671368,2.86485,3490.6,3490.0,0.13864485]
[1721184673788,2.86485,3490.6,3489.8,4.56548]
[1721184673789,2.86485,3490.6,3490.1,0.138623]
[1721184674175,2.86492,3490.5,3489.8,4.56548]
[1721184674896,2.86492,3490.5,3489.9,0.13866671]
[1721184676600,2.86505,3490.4,3489.9,0.13866671]
[1721184678282,2.8651,3490.3,3489.9,0.13866671]
[1721184678569,2.86524,3490.2,3489.9,0.13866671]
[1721184678769,0.286524,3490.1,3489.9,0.13866671]
[1721184679018,2.86528,3490.1,3490.0,0.13857666]
[1721184679202,5.73056,3490.1,3490.0,0.13857666]
[1721184679407,2.4108,3490.5,3489.5,7.28]
[1721184679408,2.86549,3489.8,3489.5,7.28]
[1721184679894,2.86557,3489.7,3489.5,7.28]
[1721184682301,2.86548,3489.9,3489.5,7.28]
[1721184682828,2.8655,3489.8,3489.5,7.28]
[1721184683037,2.8655,3489.8,3489.4,1.006]
[1721184683235,2.86536,3490.0,3489.5,0.3259]
[1721184683537,2.86518,3490.2,3489.6,1.006]
[1721184684346,2.86501,3490.4,3489.6,1.006]
[1721184684552,2.86509,3490.3,3489.6,1.006]
[1721184684764,2.86517,3490.2,3489.6,1.006]
[1721184685041,2.86517,3490.2,3489.6,2.107651]
[1721184686803,2.86525,3490.1,3489.6,2.107651]
[1721184687034,2.86525,3490.1,3489.5,2.86573]
[1721184687732,2.86525,3490.1,3489.4,2.706]
[1721184688138,2.86533,3490.0,3489.1,2.86605]
[1721184688318,2.86555,3489.8,3489.1,2.86605]
[1721184688519,2.86557,3489.7,3489.1,2.86605]
[1721184689342,2.86557,3489.7,3489.0,3.4818]
[1721184689539,2.86557,3489.7,3488.8,1.7]
[1721184689540,2.86579,3489.5,3488.8,1.006]
[1721184689743,2.86583,3489.4,3488.8,1.006]
[1721184689911,2.86595,3489.3,3488.7,9.96863707]
[1721184690110,2.86595,3489.3,3488.8,1.006]
[1721184690759,2.866,3489.2,3488.7,0.29723707]
[1721184691348,2.866,3489.2,3488.7,1.30323707]
[1721184691508,2.866,3489.2,3488.8,0.87362471]
[1721184691709,2.866,3489.2,3488.7,1.30323707]
[1721184692319,2.866,3489.2,3488.7,0.29723707]
[1721184692638,2.866,3489.2,3488.5,4.56655]
[1721184693525,2.866,3489.2,3488.6,0.13892965]
[1721184693729,0.8986087,3489.7,3488.9,1.7]
[1721184694072,2.86522,3490.2,3489.3,4.56589]
[1721184694234,2.8651,3490.3,3489.3,4.56589]
[1721184694235,2.86526,3490.1,3489.3,4.56589]
[1721184695163,2.86526,3490.1,3489.4,2.86581]
[1721184696063,2.86534,3490.0,3489.4,2.86581]
[1721184696248,2.86541,3489.9,3489.5,0.456581]
[1721184699148,2.86517,3490.2,3489.3,1.7]
[1721184699547,5.2483,3490.4,3489.0,2.5273]
[1721184699548,2.86548,3489.9,3489.0,2.5273]
[1721184699840,2.86548,3489.9,3488.9,8.98]
[1721184699841,2.86574,3489.5,3488.9,7.28]
[1721184700056,2.86574,3489.5,3488.6,0.13892965]
[1721184700241,2.86591,3489.3,3488.6,0.13892965]
[1721184701063,2.86599,3489.2,3488.6,0.13892965]
[1721184701231,2.86622,3489.0,3488.6,0.13892965]
[1721184701433,2.86639,3488.7,3488.6,0.13892965]
[1721184702391,5.73278,3488.7,3488.6,0.13892965]
[1721184702597,5.73278,3488.7,3487.9,7.28]
[1721184702598,2.86674,3488.3,3487.9,7.28]
[1721184702896,2.86674,3488.3,3487.4,18.47367642]
[1721184704444,2.86681,3488.2,3487.0,7.28]
[1721184704680,2.86681,3488.2,3486.9,3.15951054]
[1721184704880,2.86705,3487.9,3486.9,3.15951054]
[1721184706002,2.86715,3487.8,3486.9,3.15951054]
[1721184706279,2.86747,3487.4,3486.9,3.15951054]
[1721184706651,2.86747,3487.4,3486.9,2.86]
[1721184707264,2.86747,3487.4,3486.6,7.28]
[1721184709697,2.86757,3487.3,3486.6,7.28]
[1721184709997,2.86757,3487.3,3486.2,7.28]
[1721184710167,3.441074,3487.3,3486.1,5.86849]
[1721184710368,3.441074,3487.3,3486.2,0.55]
[1721184710687,2.86765,3487.2,3486.2,0.55]
[1721184710895,2.86765,3487.2,3486.0,5.86861]
[1721184711195,2.86765,3487.2,3486.0,3.0]
[1721184711196,2.86774,3487.1,3486.0,3.0]
[1721184711408,2.86784,3487.0,3485.9,3.29948854]
[1721184712757,0.573504,3487.3,3486.1,1.7]
[1721184713097,3.0,3487.6,3486.2,3.41842]
[1721184713395,2.86741,3487.5,3486.2,3.41842]
[1721184713558,2.86741,3487.5,3486.2,38.41842]